[Event "Schack-SM 2024: Mastarklassen"]
[Site "Fortnox Arena, Hejaregatan 5, Vaxjo, Sweden"]
[Date "2024.07.04"]
[Round "6.10"]
[White "Ostensson, Julia"]
[Black "Sundin, Emanuel"]
[Result "1/2-1/2"]
[TimeControl "90 minutes for 40 moves + 30 minutes for the rest of the game + 30 seconds per move from move one."]
[WhiteElo "2004"]
[BlackElo "2165"]

1. e4 {[%clk 01:30:57]} {[%emt 00:00:02]} d5 {[%clk 01:30:53]} {[%emt
00:00:07]} 2. exd5 {[%clk 01:31:23]} {[%emt 00:00:05]} Nf6 {[%clk 01:31:17]}
{[%emt 00:00:05]} 3. Bb5+ {[%clk 01:31:50]} {[%emt 00:00:05]} Nbd7 {[%clk
01:30:38]} {[%emt 00:01:08]} 4. d4 {[%clk 01:32:11]} {[%emt 00:00:08]} Nxd5
{[%clk 01:28:43]} {[%emt 00:02:25]} 5. Nf3 {[%clk 01:32:29]} {[%emt 00:00:12]}
c6 {[%clk 01:27:29]} {[%emt 00:01:45]} 6. Be2 {[%clk 01:32:54]} {[%emt
00:00:04]} g6 {[%clk 01:25:02]} {[%emt 00:02:57]} 7. O-O {[%clk 01:33:15]}
{[%emt 00:00:10]} Bg7 {[%clk 01:24:55]} {[%emt 00:00:36]} 8. c4 {[%clk
01:33:35]} {[%emt 00:00:11]} N5f6 {[%clk 01:24:18]} {[%emt 00:01:07]} 9. Nc3
{[%clk 01:33:26]} {[%emt 00:00:39]} O-O {[%clk 01:24:01]} {[%emt 00:00:48]} 10.
Bf4 {[%clk 01:25:44]} {[%emt 00:08:11]} Nb6 {[%clk 01:20:09]} {[%emt 00:04:21]}
11. h3 {[%clk 01:23:06]} {[%emt 00:03:08]} Bf5 {[%clk 01:16:42]} {[%emt
00:03:56]} 12. Qb3 {[%clk 01:21:19]} {[%emt 00:02:19]} Qc8 {[%clk 01:08:04]}
{[%emt 00:09:07]} 13. Rfd1 {[%clk 01:18:04]} {[%emt 00:03:46]} Ne4 {[%clk
01:05:36]} {[%emt 00:02:58]} 14. Rac1 {[%clk 01:03:17]} {[%emt 00:15:16]} Nxc3
{[%clk 01:04:22]} {[%emt 00:01:43]} 15. bxc3 {[%clk 01:02:50]} {[%emt
00:00:57]} Nd7 {[%clk 00:50:51]} {[%emt 00:14:02]} 16. c5 {[%clk 00:36:49]}
{[%emt 00:26:31]} b6 {[%clk 00:43:59]} {[%emt 00:07:23]} 17. cxb6 {[%clk
00:30:25]} {[%emt 00:06:53]} axb6 {[%clk 00:44:06]} {[%emt 00:00:24]} 18. c4
{[%clk 00:19:40]} {[%emt 00:11:14]} Qa6 {[%clk 00:33:02]} {[%emt 00:11:34]} 19.
Rd2 {[%clk 00:11:53]} {[%emt 00:08:17]} Qa3 {[%clk 00:25:22]} {[%emt 00:08:10]}
20. Qxa3 {[%clk 00:08:35]} {[%emt 00:03:50]} Rxa3 {[%clk 00:25:50]} {[%emt
00:00:01]} 21. g4 {[%clk 00:08:31]} {[%emt 00:00:33]} e5 {[%clk 00:16:59]}
{[%emt 00:09:21]} 22. dxe5 {[%clk 00:08:20]} {[%emt 00:00:40]} Be6 {[%clk
00:16:33]} {[%emt 00:00:56]} 23. Rcd1 {[%clk 00:05:31]} {[%emt 00:03:20]} Nc5
{[%clk 00:15:53]} {[%emt 00:01:10]} 24. Kg2 {[%clk 00:00:38]} {[%emt 00:05:24]}
Ne4 {[%clk 00:12:22]} {[%emt 00:04:00]} 25. Rd3 {[%clk 00:00:36]} {[%emt
00:00:32]} Rxa2 {[%clk 00:12:18]} {[%emt 00:00:34]} 26. Nd2 {[%clk 00:00:40]}
{[%emt 00:00:27]} Bxc4 {[%clk 00:09:14]} {[%emt 00:03:34]} 27. Nxc4 {[%clk
00:00:49]} {[%emt 00:00:21]} Rxe2 {[%clk 00:09:42]} {[%emt 00:00:01]} 28. Kf3
{[%clk 00:00:48]} {[%emt 00:00:31]} Rc2 {[%clk 00:06:56]} {[%emt 00:03:15]} 29.
Ne3 {[%clk 00:00:36]} {[%emt 00:00:44]} Rxf2+ {[%clk 00:04:44]} {[%emt
00:02:40]} 30. Kxe4 {[%clk 00:01:01]} {[%emt 00:00:06]} Rb2 {[%clk 00:03:25]}
{[%emt 00:01:48]} 31. R1d2 {[%clk 00:00:41]} {[%emt 00:00:51]} Rb5 {[%clk
00:03:22]} {[%emt 00:00:32]} 32. Rd6 {[%clk 00:00:37]} {[%emt 00:00:35]} Re8
{[%clk 00:02:38]} {[%emt 00:01:14]} 33. Rd8 {[%clk 00:00:43]} {[%emt 00:00:23]}
Kf8 {[%clk 00:03:07]} {[%emt 00:00:02]} 34. Rxe8+ {[%clk 00:00:50]} {[%emt
00:00:23]} Kxe8 {[%clk 00:03:37]} 35. Rd6 {[%clk 00:00:37]} {[%emt 00:00:42]}
Rc5 {[%clk 00:03:22]} {[%emt 00:00:45]} 36. Rd4 {[%clk 00:00:37]} {[%emt
00:00:31]} b5 {[%clk 00:03:17]} {[%emt 00:00:35]} 37. g5 {[%clk 00:00:41]}
{[%emt 00:00:26]} Rc3 {[%clk 00:01:48]} {[%emt 00:01:59]} 38. Ng4 {[%clk
00:00:35]} {[%emt 00:00:35]} c5 {[%clk 00:00:33]} {[%emt 00:01:45]} 39. Rd3
{[%clk 00:00:39]} {[%emt 00:00:26]} Rc4+ {[%clk 00:00:47]} {[%emt 00:00:17]} 40.
Ke3 {[%clk 00:01:00]} {[%emt 00:00:09]} Ke7 {[%clk 00:00:42]} {[%emt 00:00:34]}
41. Rd6 {[%clk 00:13:20]} {[%emt 00:18:10]} b4 {[%clk 00:24:15]} {[%emt
00:06:57]} 42. Nf6 {[%clk 00:10:13]} {[%emt 00:03:37]} Rc3+ {[%clk 00:17:38]}
{[%emt 00:07:08]} 43. Kd2 {[%clk 00:08:42]} {[%emt 00:02:00]} Rxh3 {[%clk
00:12:59]} {[%emt 00:05:08]} 44. Nd5+ {[%clk 00:09:07]} {[%emt 00:00:06]} Ke8
{[%clk 00:13:14]} {[%emt 00:00:14]} 45. Nc7+ {[%clk 00:03:35]} {[%emt
00:06:03]} Ke7 {[%clk 00:12:35]} {[%emt 00:01:09]} 46. Nd5+ {[%clk 00:03:30]}
{[%emt 00:00:35]} Ke8 {[%clk 00:12:58]} {[%emt 00:00:07]} 47. Nc7+ {[%clk
00:02:52]} {[%emt 00:01:09]} Ke7 {[%clk 00:13:26]} {[%emt 00:00:01]} 48. Nd5+
{[%clk 00:02:41]} {[%emt 00:00:41]} 1/2-1/2

[Event "Schack-SM 2024: Mastarklassen"]
[Site "Fortnox Arena, Hejaregatan 5, Vaxjo, Sweden"]
[Date "2024.07.04"]
[Round "6.11"]
[White "Johnson, Daniel"]
[Black "Karlsson, Stefan 2005"]
[Result "1-0"]
[TimeControl "90 minutes for 40 moves + 30 minutes for the rest of the game + 30 seconds per move from move one."]
[WhiteElo "2126"]
[BlackElo "2072"]

1. d4 {[%clk 01:22:28]} {[%emt 00:08:26]} Nf6 {[%clk 01:30:24]} {[%emt
00:00:41]} 2. c4 {[%clk 01:22:52]} {[%emt 00:00:07]} g6 {[%clk 01:30:46]}
{[%emt 00:00:08]} 3. f3 {[%clk 01:23:06]} {[%emt 00:00:16]} Bg7 {[%clk
01:31:10]} {[%emt 00:00:05]} 4. e4 {[%clk 01:23:32]} {[%emt 00:00:05]} d6
{[%clk 01:31:36]} {[%emt 00:00:04]} 5. Nc3 {[%clk 01:23:57]} {[%emt 00:00:05]}
O-O {[%clk 01:32:00]} {[%emt 00:00:06]} 6. Nge2 {[%clk 01:24:24]} {[%emt
00:00:03]} a6 {[%clk 01:32:18]} {[%emt 00:00:12]} 7. Be3 {[%clk 01:24:29]}
{[%emt 00:00:25]} Nc6 {[%clk 01:32:42]} {[%emt 00:00:06]} 8. Rb1 {[%clk
01:24:29]} {[%emt 00:00:30]} b5 {[%clk 01:30:25]} {[%emt 00:02:47]} 9. cxb5
{[%clk 01:22:28]} {[%emt 00:02:31]} axb5 {[%clk 01:30:42]} {[%emt 00:00:13]} 10.
Nxb5 {[%clk 01:22:52]} {[%emt 00:00:06]} Rxa2 {[%clk 01:29:27]} {[%emt
00:01:45]} 11. Na3 {[%clk 01:23:07]} {[%emt 00:00:16]} Nd7 {[%clk 01:23:49]}
{[%emt 00:06:06]} 12. Nc3 {[%clk 01:13:45]} {[%emt 00:09:53]} Rxa3 {[%clk
01:23:54]} {[%emt 00:00:26]} 13. bxa3 {[%clk 01:14:10]} {[%emt 00:00:05]} e5
{[%clk 01:20:23]} {[%emt 00:04:00]} 14. d5 {[%clk 01:13:49]} {[%emt 00:00:51]}
Nd4 {[%clk 01:20:37]} {[%emt 00:00:16]} 15. Nb5 {[%clk 01:12:19]} {[%emt
00:02:01]} f5 {[%clk 01:19:49]} {[%emt 00:01:17]} 16. exf5 {[%clk 00:46:15]}
{[%emt 00:26:34]} Nxf5 {[%clk 01:18:15]} {[%emt 00:02:04]} 17. Bf2 {[%clk
00:46:18]} {[%emt 00:00:27]} Nf6 {[%clk 01:10:48]} {[%emt 00:07:55]} 18. Bd3
{[%clk 00:38:48]} {[%emt 00:08:01]} Ne7 {[%clk 01:08:36]} {[%emt 00:02:42]} 19.
Nc3 {[%clk 00:34:35]} {[%emt 00:04:43]} Kh8 {[%clk 00:58:06]} {[%emt 00:11:01]}
20. Qb3 {[%clk 00:22:45]} {[%emt 00:12:20]} Nh5 {[%clk 00:50:39]} {[%emt
00:07:57]} 21. Ne2 {[%clk 00:22:09]} {[%emt 00:01:05]} Nf6 {[%clk 00:48:05]}
{[%emt 00:03:05]} 22. Nc3 {[%clk 00:22:34]} {[%emt 00:00:04]} Nh5 {[%clk
00:48:27]} {[%emt 00:00:09]} 23. Ne2 {[%clk 00:22:57]} {[%emt 00:00:06]} Nf6
{[%clk 00:48:50]} {[%emt 00:00:08]} 24. Bc4 {[%clk 00:22:32]} {[%emt 00:00:55]}
e4 {[%clk 00:40:41]} {[%emt 00:08:38]} 25. Nd4 {[%clk 00:14:14]} {[%emt
00:08:49]} Nf5 {[%clk 00:34:57]} {[%emt 00:06:13]} 26. O-O {[%clk 00:12:03]}
{[%emt 00:02:40]} Nh5 {[%clk 00:28:26]} {[%emt 00:07:03]} 27. Nc6 {[%clk
00:08:54]} {[%emt 00:03:39]} Qe8 {[%clk 00:20:59]} {[%emt 00:07:57]} 28. Rbe1
{[%clk 00:08:07]} {[%emt 00:01:18]} Nf6 {[%clk 00:20:36]} {[%emt 00:00:52]} 29.
fxe4 {[%clk 00:07:46]} {[%emt 00:00:51]} Nxe4 {[%clk 00:18:22]} {[%emt
00:02:43]} 30. Qc2 {[%clk 00:06:51]} {[%emt 00:01:25]} Nxf2 {[%clk 00:17:52]}
{[%emt 00:01:00]} 31. Rxe8 {[%clk 00:07:11]} {[%emt 00:00:11]} Nh3+ {[%clk
00:18:08]} {[%emt 00:00:14]} 32. gxh3 {[%clk 00:07:05]} {[%emt 00:00:36]} Rxe8
{[%clk 00:18:33]} {[%emt 00:00:05]} 33. Bd3 {[%clk 00:05:32]} {[%emt 00:02:02]}
Ne3 {[%clk 00:17:45]} {[%emt 00:01:19]} 34. Qe2 {[%clk 00:05:50]} {[%emt
00:00:12]} Bxh3 {[%clk 00:17:59]} {[%emt 00:00:16]} 35. Rf3 {[%clk 00:05:32]}
{[%emt 00:00:48]} Bd7 {[%clk 00:18:09]} {[%emt 00:00:19]} 36. Rxe3 {[%clk
00:05:54]} {[%emt 00:00:08]} Ra8 {[%clk 00:18:18]} {[%emt 00:00:21]} 37. Re7
{[%clk 00:06:12]} {[%emt 00:00:12]} 1-0

[Event "Schack-SM 2024: Mastarklassen"]
[Site "Fortnox Arena, Hejaregatan 5, Vaxjo, Sweden"]
[Date "2024.07.03"]
[Round "5.10"]
[White "Lind, Jan-Olov"]
[Black "Arvidsson, Jonas"]
[Result "1-0"]
[TimeControl "90 minutes for 40 moves + 30 minutes for the rest of the game + 30 seconds per move from move one."]
[WhiteElo "2135"]
[BlackElo "1960"]

1. Nf3 {[%clk 01:30:54]} {[%emt 00:00:05]} d5 {[%clk 01:29:02]} {[%emt
00:01:59]} 2. g3 {[%clk 01:31:01]} {[%emt 00:00:22]} Nf6 {[%clk 01:28:26]}
{[%emt 00:01:07]} 3. Bg2 {[%clk 01:31:21]} {[%emt 00:00:10]} g6 {[%clk
01:28:09]} {[%emt 00:00:48]} 4. O-O {[%clk 01:31:05]} {[%emt 00:00:44]} Bg7
{[%clk 01:28:33]} {[%emt 00:00:07]} 5. d3 {[%clk 01:30:53]} {[%emt 00:00:42]}
O-O {[%clk 01:26:24]} {[%emt 00:02:39]} 6. Nbd2 {[%clk 01:31:03]} {[%emt
00:00:19]} c6 {[%clk 01:24:36]} {[%emt 00:02:18]} 7. e4 {[%clk 01:29:39]}
{[%emt 00:01:55]} dxe4 {[%clk 01:24:04]} {[%emt 00:01:03]} 8. dxe4 {[%clk
01:29:48]} {[%emt 00:00:20]} Nbd7 {[%clk 01:21:45]} {[%emt 00:02:50]} 9. Qe2
{[%clk 01:22:09]} {[%emt 00:08:08]} Qc7 {[%clk 01:15:05]} {[%emt 00:07:10]} 10.
e5 {[%clk 01:14:41]} {[%emt 00:07:58]} Ng4 {[%clk 01:09:36]} {[%emt 00:05:59]}
11. e6 {[%clk 01:14:28]} {[%emt 00:00:42]} Nb6 {[%clk 01:05:01]} {[%emt
00:05:05]} 12. exf7+ {[%clk 01:10:41]} {[%emt 00:04:18]} Kh8 {[%clk 01:02:52]}
{[%emt 00:02:40]} 13. Re1 {[%clk 01:05:14]} {[%emt 00:05:56]} Rxf7 {[%clk
00:59:42]} {[%emt 00:03:40]} 14. h3 {[%clk 01:04:40]} {[%emt 00:01:03]} Nf6
{[%clk 00:58:42]} {[%emt 00:01:31]} 15. Ng5 {[%clk 01:00:02]} {[%emt 00:05:08]}
Rf8 {[%clk 00:59:05]} {[%emt 00:00:07]} 16. Ndf3 {[%clk 00:58:56]} {[%emt
00:01:36]} h6 {[%clk 00:56:48]} {[%emt 00:02:48]} 17. Ne6 {[%clk 00:56:10]}
{[%emt 00:03:15]} Bxe6 {[%clk 00:57:07]} {[%emt 00:00:11]} 18. Qxe6 {[%clk
00:56:33]} {[%emt 00:00:06]} Rae8 {[%clk 00:51:38]} {[%emt 00:05:59]} 19. Ne5
{[%clk 00:47:00]} {[%emt 00:10:03]} Kh7 {[%clk 00:50:22]} {[%emt 00:01:47]} 20.
Nxg6 {[%clk 00:47:07]} {[%emt 00:00:22]} 1-0

[Event "Schack-SM 2024: Mastarklassen"]
[Site "Fortnox Arena, Hejaregatan 5, Vaxjo, Sweden"]
[Date "2024.07.03"]
[Round "5.11"]
[White "Granath, Jonas"]
[Black "Willstedt, Lukas"]
[Result "1/2-1/2"]
[TimeControl "90 minutes for 40 moves + 30 minutes for the rest of the game + 30 seconds per move from move one."]
[WhiteElo "1948"]
[BlackElo "2082"]

1. e4 {[%clk 01:30:57]} {[%emt 00:00:03]} c6 {[%clk 01:30:56]} {[%emt
00:00:06]} 2. d4 {[%clk 01:31:01]} {[%emt 00:00:25]} d5 {[%clk 01:31:01]}
{[%emt 00:00:24]} 3. f3 {[%clk 01:30:30]} {[%emt 00:01:02]} e6 {[%clk
01:31:09]} {[%emt 00:00:22]} 4. Nc3 {[%clk 01:29:57]} {[%emt 00:01:03]} Bb4
{[%clk 01:31:27]} {[%emt 00:00:12]} 5. Bd2 {[%clk 01:29:46]} {[%emt 00:00:41]}
Ne7 {[%clk 01:31:45]} {[%emt 00:00:12]} 6. Bd3 {[%clk 01:28:46]} {[%emt
00:01:30]} Nd7 {[%clk 01:31:20]} {[%emt 00:00:54]} 7. Nge2 {[%clk 01:25:39]}
{[%emt 00:03:37]} dxe4 {[%clk 01:25:14]} {[%emt 00:06:38]} 8. fxe4 {[%clk
01:16:30]} {[%emt 00:09:38]} e5 {[%clk 01:24:11]} {[%emt 00:01:33]} 9. a3
{[%clk 01:08:29]} {[%emt 00:08:31]} Ba5 {[%clk 01:22:06]} {[%emt 00:02:35]} 10.
O-O {[%clk 00:50:55]} {[%emt 00:18:03]} Bb6 {[%clk 01:19:01]} {[%emt 00:03:35]}
11. Na4 {[%clk 00:37:40]} {[%emt 00:13:46]} exd4 {[%clk 01:12:59]} {[%emt
00:06:32]} 12. Nxb6 {[%clk 00:37:04]} {[%emt 00:01:05]} Qxb6 {[%clk 01:12:38]}
{[%emt 00:00:52]} 13. Nf4 {[%clk 00:36:55]} {[%emt 00:00:39]} Ne5 {[%clk
01:07:51]} {[%emt 00:05:17]} 14. Qh5 {[%clk 00:34:07]} {[%emt 00:03:18]} N7g6
{[%clk 01:05:42]} {[%emt 00:02:39]} 15. Nxg6 {[%clk 00:28:54]} {[%emt
00:05:43]} Nxg6 {[%clk 01:05:18]} {[%emt 00:00:54]} 16. Ba5 {[%clk 00:27:03]}
{[%emt 00:02:21]} Bg4 {[%clk 01:03:07]} {[%emt 00:02:41]} 17. Qg5 {[%clk
00:22:31]} {[%emt 00:05:01]} h6 {[%clk 01:02:19]} {[%emt 00:01:18]} 18. Qxg4
{[%clk 00:19:21]} {[%emt 00:03:40]} Qxa5 {[%clk 01:01:47]} {[%emt 00:01:02]} 19.
Bc4 {[%clk 00:13:51]} {[%emt 00:06:01]} Rf8 {[%clk 00:54:19]} {[%emt 00:07:57]}
20. Rxf7 {[%clk 00:13:28]} {[%emt 00:00:54]} Ne7 {[%clk 00:53:53]} {[%emt
00:00:55]} 21. Rxf8+ {[%clk 00:08:41]} {[%emt 00:05:17]} Kxf8 {[%clk 00:54:21]}
{[%emt 00:00:03]} 22. Rf1+ {[%clk 00:08:55]} {[%emt 00:00:15]} Ke8 {[%clk
00:54:40]} {[%emt 00:00:11]} 23. Qxg7 {[%clk 00:08:59]} {[%emt 00:00:26]} Qc5
{[%clk 00:52:59]} {[%emt 00:02:12]} 24. Be6 {[%clk 00:06:54]} {[%emt 00:02:34]}
Kd8 {[%clk 00:51:59]} {[%emt 00:01:30]} 25. Kh1 {[%clk 00:03:28]} {[%emt
00:03:57]} Kc7 {[%clk 00:52:13]} {[%emt 00:00:15]} 26. h3 {[%clk 00:02:38]}
{[%emt 00:01:21]} Kb6 {[%clk 00:52:10]} {[%emt 00:00:32]} 27. Rf7 {[%clk
00:01:50]} {[%emt 00:01:19]} Re8 {[%clk 00:52:32]} {[%emt 00:00:07]} 28. b4
{[%clk 00:01:49]} {[%emt 00:00:32]} Qd6 {[%clk 00:51:57]} {[%emt 00:01:03]} 29.
Bc4 {[%clk 00:01:38]} {[%emt 00:00:42]} Rg8 {[%clk 00:51:11]} {[%emt 00:01:16]}
30. Qf6 {[%clk 00:01:44]} {[%emt 00:00:24]} Qxf6 {[%clk 00:50:18]} {[%emt
00:01:24]} 31. Rxf6 {[%clk 00:02:12]} {[%emt 00:00:01]} Rg6 {[%clk 00:49:50]}
{[%emt 00:00:58]} 32. Rxg6 {[%clk 00:02:06]} {[%emt 00:00:37]} Nxg6 {[%clk
00:50:19]} {[%emt 00:00:01]} 33. g3 {[%clk 00:02:14]} {[%emt 00:00:22]} Ne5
{[%clk 00:50:41]} {[%emt 00:00:08]} 34. Bd3 {[%clk 00:02:36]} {[%emt 00:00:08]}
a5 {[%clk 00:51:00]} {[%emt 00:00:11]} 35. Kg2 {[%clk 00:02:48]} {[%emt
00:00:18]} c5 {[%clk 00:51:05]} {[%emt 00:00:25]} 36. bxc5+ {[%clk 00:01:42]}
{[%emt 00:01:37]} Kxc5 {[%clk 00:51:34]} {[%emt 00:00:01]} 37. Kf2 {[%clk
00:01:13]} {[%emt 00:00:58]} b5 {[%clk 00:51:57]} {[%emt 00:00:06]} 38. Ke2
{[%clk 00:01:32]} {[%emt 00:00:12]} a4 {[%clk 00:51:48]} {[%emt 00:00:39]} 39.
g4 {[%clk 00:01:34]} {[%emt 00:00:29]} b4 {[%clk 00:52:05]} {[%emt 00:00:13]}
40. Kd2 {[%clk 00:01:26]} {[%emt 00:00:37]} bxa3 {[%clk 00:51:41]} {[%emt
00:00:54]} 41. Kc1 {[%clk 00:01:50]} {[%emt 00:00:05]} Kb4 {[%clk 00:51:35]}
{[%emt 00:00:36]} 42. Kb1 {[%clk 00:01:57]} {[%emt 00:00:23]} Kc3 {[%clk
00:47:27]} {[%emt 00:04:39]} 43. Ka2 {[%clk 00:21:52]} {[%emt 00:10:35]} Nxd3
{[%clk 01:13:32]} {[%emt 00:04:24]} 44. cxd3 {[%clk 00:19:07]} {[%emt
00:03:15]} Kxd3 {[%clk 01:13:57]} {[%emt 00:00:06]} 45. e5 {[%clk 00:19:32]}
{[%emt 00:00:05]} Kc3 {[%clk 01:14:20]} {[%emt 00:00:06]} 46. e6 {[%clk
00:19:56]} {[%emt 00:00:07]} d3 {[%clk 01:14:47]} {[%emt 00:00:03]} 47. e7
{[%clk 00:20:22]} {[%emt 00:00:04]} d2 {[%clk 01:15:15]} {[%emt 00:00:02]} 48.
e8=Q {[%clk 00:20:45]} {[%emt 00:00:07]} d1=Q {[%clk 01:15:37]} {[%emt
00:00:07]} 49. Qc6+ {[%clk 00:13:49]} {[%emt 00:07:26]} Kb4 {[%clk 01:15:50]}
{[%emt 00:00:15]} 50. Qb6+ {[%clk 00:13:56]} {[%emt 00:00:26]} Kc4 {[%clk
01:16:13]} {[%emt 00:00:06]} 51. Qc6+ {[%clk 00:13:46]} {[%emt 00:00:41]}
1/2-1/2

[Event "Schack-SM 2024: Mastarklassen"]
[Site "Fortnox Arena, Hejaregatan 5, Vaxjo, Sweden"]
[Date "2024.07.03"]
[Round "5.12"]
[White "Joensson, Oscar"]
[Black "Malm, Simon 1995"]
[Result "1-0"]
[TimeControl "90 minutes for 40 moves + 30 minutes for the rest of the game + 30 seconds per move from move one."]
[WhiteElo "1989"]
[BlackElo "1948"]

1. d4 {[%clk 01:30:57]} {[%emt 00:00:02]} d5 {[%clk 01:30:48]} {[%emt
00:00:12]} 2. c4 {[%clk 01:31:23]} {[%emt 00:00:05]} c6 {[%clk 01:30:24]}
{[%emt 00:00:54]} 3. Nf3 {[%clk 01:31:47]} {[%emt 00:00:05]} Nf6 {[%clk
01:30:42]} {[%emt 00:00:13]} 4. Qb3 {[%clk 01:32:12]} {[%emt 00:00:05]} e6
{[%clk 01:28:07]} {[%emt 00:03:06]} 5. g3 {[%clk 01:32:19]} {[%emt 00:00:22]}
dxc4 {[%clk 01:23:07]} {[%emt 00:05:31]} 6. Qxc4 {[%clk 01:32:43]} {[%emt
00:00:06]} b5 {[%clk 01:22:46]} {[%emt 00:00:51]} 7. Qc2 {[%clk 01:31:37]}
{[%emt 00:01:35]} Bb7 {[%clk 01:22:45]} {[%emt 00:00:31]} 8. Bg2 {[%clk
01:30:30]} {[%emt 00:01:37]} Nbd7 {[%clk 01:20:16]} {[%emt 00:02:59]} 9. a4
{[%clk 00:56:13]} {[%emt 00:34:47]} a6 {[%clk 01:13:28]} {[%emt 00:07:19]} 10.
O-O {[%clk 00:38:53]} {[%emt 00:17:49]} c5 {[%clk 01:11:11]} {[%emt 00:02:48]}
11. Bg5 {[%clk 00:29:38]} {[%emt 00:09:44]} Qb6 {[%clk 01:04:36]} {[%emt
00:07:06]} 12. axb5 {[%clk 00:26:00]} {[%emt 00:04:07]} axb5 {[%clk 01:02:19]}
{[%emt 00:02:48]} 13. Rxa8+ {[%clk 00:26:24]} {[%emt 00:00:05]} Bxa8 {[%clk
01:02:42]} {[%emt 00:00:07]} 14. Nc3 {[%clk 00:23:46]} {[%emt 00:03:08]} Be7
{[%clk 00:55:21]} {[%emt 00:07:51]} 15. dxc5 {[%clk 00:18:23]} {[%emt
00:05:53]} Bxc5 {[%clk 00:55:02]} {[%emt 00:00:49]} 16. Qb3 {[%clk 00:17:35]}
{[%emt 00:01:17]} Ng4 {[%clk 00:49:35]} {[%emt 00:05:58]} 17. Qxb5 {[%clk
00:14:03]} {[%emt 00:04:02]} Bxf2+ {[%clk 00:44:32]} {[%emt 00:05:33]} 18. Kh1
{[%clk 00:14:27]} {[%emt 00:00:06]} f6 {[%clk 00:41:26]} {[%emt 00:03:36]} 19.
Bd2 {[%clk 00:13:36]} {[%emt 00:01:21]} Be3 {[%clk 00:38:29]} {[%emt 00:03:27]}
20. Qh5+ {[%clk 00:13:42]} {[%emt 00:00:23]} g6 {[%clk 00:33:55]} {[%emt
00:05:05]} 21. Qxg4 {[%clk 00:14:04]} {[%emt 00:00:08]} Bxf3 {[%clk 00:34:17]}
{[%emt 00:00:09]} 22. Qxf3 {[%clk 00:11:50]} {[%emt 00:02:44]} Bxd2 {[%clk
00:34:40]} {[%emt 00:00:07]} 23. Ne4 {[%clk 00:10:51]} {[%emt 00:01:28]} Bb4
{[%clk 00:31:29]} {[%emt 00:03:42]} 24. Nxf6+ {[%clk 00:10:28]} {[%emt
00:00:52]} Nxf6 {[%clk 00:31:49]} {[%emt 00:00:11]} 25. Qa8+ {[%clk 00:10:52]}
{[%emt 00:00:05]} Qd8 {[%clk 00:22:03]} {[%emt 00:10:16]} 26. Qa4+ {[%clk
00:11:16]} {[%emt 00:00:05]} Kf7 {[%clk 00:22:09]} {[%emt 00:00:25]} 27. Qxb4
{[%clk 00:11:41]} {[%emt 00:00:05]} Re8 {[%clk 00:21:53]} {[%emt 00:00:46]} 28.
Qc3 {[%clk 00:11:27]} {[%emt 00:00:43]} e5 {[%clk 00:21:32]} {[%emt 00:00:52]}
29. h3 {[%clk 00:10:03]} {[%emt 00:01:53]} Kg7 {[%clk 00:21:39]} {[%emt
00:00:25]} 30. b4 {[%clk 00:09:48]} {[%emt 00:00:45]} Qd6 {[%clk 00:16:46]}
{[%emt 00:05:22]} 31. Bc6 {[%clk 00:06:23]} {[%emt 00:03:55]} Re7 {[%clk
00:14:18]} {[%emt 00:02:58]} 32. b5 {[%clk 00:06:27]} {[%emt 00:00:26]} Rc7
{[%clk 00:10:38]} {[%emt 00:04:11]} 33. Qb3 {[%clk 00:05:20]} {[%emt 00:01:35]}
Qd4 {[%clk 00:09:36]} {[%emt 00:01:33]} 34. Kg2 {[%clk 00:03:54]} {[%emt
00:01:56]} Ne4 {[%clk 00:06:27]} {[%emt 00:03:39]} 35. Qf3 {[%clk 00:03:46]}
{[%emt 00:00:37]} 1-0